Cogmind - Beta 15 @@@ ROGUE MODE // 2025.09.12 @ 22:06:36 Player: Petvaria Result: Destroyed by P-80 Master with Gamma Rifle Performance ------------- Evolutions (9) 4500 Regions Visited (24) 4800 Robots Destroyed (31) 155 Value Destroyed (937) 937 Prototype IDs (64) 1280 Alien Tech Used (2) 400 Bonus (2381) 2381 TOTAL SCORE: 14453 Bonus ------- Follower Combat Kills 781 Registered with UFD 300 Met Zhirov 300 Met Warlord at Base 500 MAIN.C Attacked Warlord 500 Cogmind --------- Core Integrity 0/1600 Matter 216/300 Energy 99/100 System Corruption 7% Temperature Cool (0) Movement Core (50) Location -1/Access Parts ------- > --- POWER (2) -------- (None) > --- PROPULSION (10) -- (None) > --- UTILITY (12) ----- 0b10 Decoder Chip [Skirmisher] Hacking Suite Improved System Shield > --- WEAPON (2) ------- (None) > --- INVENTORY (5) ---- Advanced Energy Well (500) Advanced Sensor Array Advanced Signal Interpreter Improved Phase Shifter Transdimensional Reconstructor Peak State ------------ > --- POWER ------------ Light Quantum Reactor > --- PROPULSION ------- Impulse Thruster Array Impulse Thruster Array Impulse Thruster Array Impulse Thruster Array > --- UTILITY ---------- Advanced Gravity Neutralizer 0b10 Decoder Chip [Skirmisher] Hacking Suite Improved System Shield > --- WEAPON ----------- (None) > --- INVENTORY -------- Advanced Energy Well Improved Phase Shifter Transdimensional Reconstructor Self-destruct Interrupter [Rating: 97] Favorites ----------- Power Light Ion Engine Engine Light Ion Engine Power Core Neutrino Core Reactor Light Quantum Reactor Propulsion Light Treads Treads Light Treads Leg Aluminum Leg Wheel Subdweller Monowheel Hover Unit Backup Propulsion III Flight Unit Nuclear Pulse Thruster Utility Hardened Light Armor Plating Device Advanced Sensor Array Storage Medium Storage Unit Processor Improved Signal Interpreter Hackware Hacking Suite Protection Hardened Light Armor Plating Weapon Subdweller Machine Gun Energy Gun Heavy Beamcaster Energy Cannon Proton Burst Cannon Ballistic Gun Subdweller Machine Gun Ballistic Cannon Battle Cannon Impact Weapon Heavy Flail Slashing Weapon Makeshift Sword Piercing Weapon Plasma Lance Special Melee Weapon Dirty Datajack Build | -11 -10 -10 -8 -8 -6 -6 -6 -6 -6 -5 -5 -5 -5 -4 -4 -4 -4 -4 -3 -3 -2 -2 -2 -1 ------- Run | Yrd Mat Sub Rec Scr Fac Ext Cet Arc Hub Fac Upp Upp Zhi Pro Fac Upp Upp War Pro Res Res Qua Frg Acc Slots Evolved 18 | . . . . . 8 . . . . 2 . . . . 2 . . . . 2 2 . . 2 Power 1 | . . . . . . . . . . . . . . . . . . . . 1 . . . . Propulsion 7 | . . . . . 3 . . . . . . . . . 1 . . . . . 2 . . 1 Utility 10 | . . . . . 5 . . . . 2 . . . . 1 . . . . 1 . . . 1 Weapon . | . . . . . . . . . . . . . . . . . . . . . . . . . Parts Attached 109 | 6 1 13 1 8 4 27 5 2 2 1 . 2 3 3 2 1 1 10 . 3 1 2 . 11 Power 12 | 1 . 2 . 1 . 1 1 1 . . . . . . . . . 2 . 1 . 1 . 1 Engine 5 | 1 . 2 . . . . . 1 . . . . . . . . . 1 . . . . . . Core 5 | . . . . 1 . 1 1 . . . . . . . . . . 1 . 1 . . . . Reactor 2 | . . . . . . . . . . . . . . . . . . . . . . 1 . 1 Propulsion 42 | 2 . 3 . 5 2 12 3 . . . . 1 . . 1 1 . 2 . 2 1 1 . 6 Treads 12 | 2 . . . 3 . 7 . . . . . . . . . . . . . . . . . . Leg 7 | . . 2 . . . 5 . . . . . . . . . . . . . . . . . . Wheel 2 | . . 1 . . . . . . . . . . . . . . . . . . . . . 1 Hover . | . . . . . . . . . . . . . . . . . . . . . . . . . Flight 21 | . . . . 2 2 . 3 . . . . 1 . . 1 1 . 2 . 2 1 1 . 5 Utility 34 | 1 1 3 . 2 1 8 1 . 2 1 . 1 3 3 1 . . 3 . . . . . 3 Device 10 | . . . . . . 2 . . 1 1 . . . 1 1 . . 3 . . . . . 1 Storage 3 | 1 . . . 1 . . . . . . . . 1 . . . . . . . . . . . Processor 6 | . . . . 1 . 1 . . 1 . . 1 . 2 . . . . . . . . . . Hackware 4 | . . . . . 1 . . . . . . . 1 . . . . . . . . . . 2 Protection 11 | . 1 3 . . . 5 1 . . . . . 1 . . . . . . . . . . . Artifact . | . . . . . . . . . . . . . . . . . . . . . . . . . Weapon 21 | 2 . 5 1 . 1 6 . 1 . . . . . . . . 1 3 . . . . . 1 Energy Gun 5 | . . . . . . 5 . . . . . . . . . . . . . . . . . . Energy Cannon 2 | . . . . . . . . . . . . . . . . . . 1 . . . . . 1 Ballistic Gun 8 | 2 . 4 1 . . 1 . . . . . . . . . . . . . . . . . . Ballistic Cannon 1 | . . 1 . . . . . . . . . . . . . . . . . . . . . . Launcher . | . . . . . . . . . . . . . . . . . . . . . . . . . Special Weapon . | . . . . . . . . . . . . . . . . . . . . . . . . . Impact Weapon 1 | . . . . . . . . 1 . . . . . . . . . . . . . . . . Slashing Weapon 2 | . . . . . 1 . . . . . . . . . . . . 1 . . . . . . Piercing Weapon 1 | . . . . . . . . . . . . . . . . . . 1 . . . . . . Special Melee Weapon 1 | . . . . . . . . . . . . . . . . . 1 . . . . . . . Unidentified Prototypes 11 | . . . . . . . . . . . . . 1 . . 1 . 5 . 1 . . . 3 Corrupted Parts 2 | . . . . . . 2 . . . . . . . . . . . . . . . . . . System Corruption 9 | . . . . . . 9 . . . . . . . . . . . . . . . . . . Parts Lost 51 | . . 6 . . . 11 5 1 . 2 . . . 4 . 1 . 6 . . 1 . 5 9 Power 6 | . . . . . . 2 1 . . . . . . . . . . . . . 1 . 1 1 Propulsion 27 | . . 3 . . . 4 3 1 . . . . . 3 . 1 . 3 . . . . 4 5 Utility 14 | . . 1 . . . 3 1 . . 2 . . . 1 . . . 3 . . . . . 3 Weapon 4 | . . 2 . . . 2 . . . . . . . . . . . . . . . . . . Highest Loss Streak 8 | . . 2 . . . 8 5 1 . 2 . . . 4 . 1 . 4 . . 1 . 5 7 To Critical Strikes 1 | . . . . . . . 1 . . . . . . . . . . . . . . . . . Average Backups 5 | 3 7 5 3 6 5 8 8 5 4 5 5 4 5 5 5 5 4 4 4 3 3 4 4 4 Power . | . 1 . . . 1 1 1 1 . 1 1 . . . . 1 1 1 1 . . . . . Propulsion 1 | 2 3 . . 1 . 2 2 . . . . . . . . . . . . . . . . . Utility 2 | . 1 2 2 2 3 1 1 1 2 2 2 2 3 3 2 2 2 1 2 2 2 3 3 2 Weapon 1 | . 1 1 . 1 . 2 3 3 2 2 2 2 1 1 1 1 . . . . . . . . Tool/Special . | . . . . . . . . . . . . . . . . . . . . . . . . . Unused Backups 16 | . 3 1 . 3 . 3 . . . . . . . 2 1 . . . . . . . . 3 Power . | . . . . . . . . . . . . . . . . . . . . . . . . . Propulsion 3 | . 2 . . . . 1 . . . . . . . . . . . . . . . . . . Utility 5 | . . . . . . 1 . . . . . . . 1 1 . . . . . . . . 2 Weapon 6 | . 1 1 . 3 . . . . . . . . . 1 . . . . . . . . . . Tool/Special 2 | . . . . . . 1 . . . . . . . . . . . . . . . . . 1 Average Slot Usage (%) 73 | . 87 87 100 90 52 81 76 51 51 44 41 44 69 76 28 28 34 49 15 18 23 30 32 18 Engine 7 | . 14 11 14 11 . . . 1 . . . 1 5 4 . . . 3 . . . . . . Core 1 | . . . . 2 6 5 4 . . . . . . . . . . . . 2 . . . . Treads 13 | . 28 17 . 16 . 27 17 . . . . . . . . . . . . . . . . . Leg 4 | . . 10 14 4 . 2 . . . . . . . . . . . . . . . . . . Flight 4 | . . . . 5 25 1 7 20 13 11 11 12 17 15 . 2 5 10 . 3 9 14 15 1 Device 1 | . . . . . . 4 3 . 4 4 5 5 5 4 . 5 5 5 . . . . . 1 Storage 4 | . 14 4 . 9 6 5 6 6 . . . . 2 4 . . . . . . . . . . Processor 5 | . . . . . 6 10 13 13 18 17 17 18 23 28 19 15 15 15 15 13 12 12 12 6 Protection 11 | . 2 14 28 15 . 13 13 6 6 3 . . 3 5 5 5 5 4 . . . . . . Ballistic Gun 12 | . 28 18 28 21 . 2 3 . . . . . . . . . . . . . . . . . Ballistic Cannon 2 | . . 8 . . . . . . . . . . . . . . . . . . . . . . Peak Build Rating 97 | 6 9 31 12 21 30 53 49 41 41 36 33 48 72 80 46 38 44 79 17 47 58 73 73 97 Average Rating 26 | 5 7 19 12 12 27 43 41 36 35 34 33 36 63 72 35 33 41 52 17 32 50 67 66 32 On Entrance 32 | . 6 9 10 12 21 30 47 34 30 36 33 33 48 72 45 38 36 44 17 17 47 58 73 17 Naked Turns . | . . . . . . . . . . . . . . . . . . . . . . . . . Heaviest Build 54 | 14 19 54 21 26 18 48 38 15 6 6 4 13 17 17 2 2 6 11 . 7 7 15 15 15 Greatest Support 120 | 40 40 40 20 48 18 120 110 18 12 12 12 18 18 18 7 7 6 14 3 23 39 46 46 64 Greatest Overweight (x) 8 | . . 3 1 8 . . . . . . . . . . . . . 1 . . . . . . Average Overweight (x) . | . . . 1 . . . . . . . . . . . . . . . . . . . . . Largest Inventory Capacity 10 | 8 8 8 5 10 10 10 10 10 5 5 5 5 5 5 5 5 5 5 5 5 5 5 5 5 Average Capacity 6 | 6 8 5 5 8 10 9 10 9 5 5 5 5 5 5 5 5 5 5 5 5 5 5 5 5 Most Carried 10 | 6 8 8 4 9 7 10 10 6 5 5 5 5 5 5 5 5 5 5 5 5 5 5 5 5 Average Carried 5 | 3 7 5 3 6 5 8 7 4 4 5 5 4 4 4 4 4 4 4 5 4 4 5 5 4 Final Capacity 10 | 8 8 5 5 10 10 10 10 5 5 5 5 5 5 5 5 5 5 5 5 5 5 5 5 5 Final Carried 10 | 6 8 4 4 8 5 10 6 5 5 5 5 5 5 5 5 5 4 5 5 4 5 5 5 5 Class Distribution -------------------- 65% | Mutant 12% | Gunner 9% | Scavenger-Mutant 5% | Derelict-Sprinter 3% | Hacker-Mutant Dominant Class ---------------- Mutant | -10/Materials Mutant | -10/Subcaves Mutant | -8/Recycling Mutant | -8/Scraptown Derelict-Sprinter | -6/Factory Scavenger-Mutant | -6/Extension Scavenger-Mutant | -6/Cetus Mutant | -6/Archives Mutant | -6/Hub_04(d) Mutant | -5/Factory Mutant | -5/Upper Caves Mutant | -5/Upper Caves Mutant | -5/Zhirov Derelict-Mutant | -4/Proximity Caves Mutant | -4/Factory Mutant | -4/Upper Caves Mutant | -4/Upper Caves Derelict-Sprinter | -4/Warlord Mutant | -3/Proximity Caves Mutant | -3/Research Mutant | -2/Research Mutant | -2/Quarantine Sprinter | -2/Protoforge Hacker-Mutant | -1/Access Resources | -11 -10 -10 -8 -8 -6 -6 -6 -6 -6 -5 -5 -5 -5 -4 -4 -4 -4 -4 -3 -3 -2 -2 -2 -1 ----------- Run | Yrd Mat Sub Rec Scr Fac Ext Cet Arc Hub Fac Upp Upp Zhi Pro Fac Upp Upp War Pro Res Res Qua Frg Acc Matter Collected 1990 | 197 68 589 55 97 17 459 50 15 36 30 . 30 30 40 . 45 30 140 . . . . . 62 Remotely . | . . . . . . . . . . . . . . . . . . . . . . . . . Salvage Created 1658 | . 52 577 55 . 17 333 . . . 121 208 . 295 . . . . . . . . . . . Parts 83 | . 11 54 5 . 3 9 . . . . 1 . . . . . . . . . . . . . Haulers Intercepted 1 | . . . . . . . . . . 1 . . . . . . . . . . . . . . Recyclers Shooed . | . . . . . . . . . . . . . . . . . . . . . . . . . Parts Field Recycled . | . . . . . . . . . . . . . . . . . . . . . . . . . Retrieved Matter . | . . . . . . . . . . . . . . . . . . . . . . . . . Parts Self-Destructed 15 | . . 11 . . . . . . . . . 1 . . . 3 . . . . . . . . Prevented 4 | . . . . . . . . . . . . 4 . . . . . . . . . . . . Kills | -11 -10 -10 -8 -8 -6 -6 -6 -6 -6 -5 -5 -5 -5 -4 -4 -4 -4 -4 -3 -3 -2 -2 -2 -1 ------- Run | Yrd Mat Sub Rec Scr Fac Ext Cet Arc Hub Fac Upp Upp Zhi Pro Fac Upp Upp War Pro Res Res Qua Frg Acc Combat Hostiles Destroyed 27 | . 4 19 1 . . 3 . . . . . . . . . . . . . . . . . . Melee 1 | . . . . . . 1 . . . . . . . . . . . . . . . . . . Guns 18 | . 4 11 1 . . 2 . . . . . . . . . . . . . . . . . . Cannons 8 | . . 8 . . . . . . . . . . . . . . . . . . . . . . Classes Destroyed 9 | . 1 2 . . 1 2 . . . 1 2 . . . . . . . . . . . . . Hauler 1 | . . . . . . . . . . 1 . . . . . . . . . . . . . . Recycler 1 | . . . . . . 1 . . . . . . . . . . . . . . . . . . Operator 2 | . . . . . 1 . . . . 1 . . . . . . . . . . . . . . Swarmer 10 | . 4 6 . . . . . . . . . . . . . . . . . . . . . . Grunt 1 | . . . . . . 1 . . . . . . . . . . . . . . . . . . Sentry 4 | . . 1 1 . . 2 . . . . . . . . . . . . . . . . . . Subdweller 12 | . . 12 . . . . . . . . . . . . . . . . . . . . . . Decomposer 3 | . . . . . . . . . . . 3 . . . . . . . . . . . . . Samaritan 3 | . . . . . . . . . . . 3 . . . . . . . . . . . . . Best Kill Streak 4 | . 4 3 1 . . 1 . . . 1 . . . . . . . . . . . . . . Combat Bots Only 4 | . 4 3 1 . . 1 . . . . . . . . . . . . . . . . . . Max Kills in Single Turn 2 | . 2 1 1 . 1 1 . . . 1 1 . . . . . . . . . . . . . Gunslinging 1 | . 1 . . . . . . . . . . . . . . . . . . . . . . . Exploded . | . . . . . . . . . . . . . . . . . . . . . . . . . Melee 1 | . . . . . . 1 . . . . . . . . . . . . . . . . . . Uniques/NPCs Destroyed . | . . . . . . . . . . . . . . . . . . . . . . . . . Combat | -11 -10 -10 -8 -8 -6 -6 -6 -6 -6 -5 -5 -5 -5 -4 -4 -4 -4 -4 -3 -3 -2 -2 -2 -1 -------- Run | Yrd Mat Sub Rec Scr Fac Ext Cet Arc Hub Fac Upp Upp Zhi Pro Fac Upp Upp War Pro Res Res Qua Frg Acc Hostile Shots Fired 1015 | . 30 126 . . 23 224 48 5 33 6 . . . 47 2 10 12 128 2 . 77 4 49 189 Missed 465 | . 8 41 . . 15 74 14 2 22 4 . . . 29 . 8 7 65 1 . 44 1 28 102 Hits 550 | . 22 85 . . 8 150 34 3 11 2 . . . 18 2 2 5 63 1 . 33 3 21 87 Projectile 550 | . 22 85 . . 8 150 34 3 11 2 . . . 18 2 2 5 63 1 . 33 3 21 87 AOE 1 | . . 1 . . . . . . . . . . . . . . . . . . . . . . Critical Strikes 19 | . . 3 . . . 2 3 1 . . . . . 1 . 1 . 1 . . 1 . . 6 Part Disruptions 2 | . . . . . . . . . . . . . . . . . . . . . 1 . . 1 Damage Taken 10298 | . 169 1479 . . 86 2065 873 78 84 52 . . . 288 41 43 73 1087 24 . 781 89 511 2475 Core 4312 | . 25 96 . . 63 562 125 28 48 . . . . 106 14 . 25 790 24 . 450 49 293 1614 Absorbed by Shields 32 | . . . . . . . . . . . . . . . . . . . . . 32 . . . Redirected to Shielding 274 | . . . . . . . 60 32 6 15 . . . 63 8 . 14 76 . . . . . . Ignored by Resistances 65 | . . . . . . . . . . . . . . . . . . 65 . . . . . . Regen/Repaired (Parts) 24 | . . . . . . . . . . . . . . . . . . 24 . . . . . . Core Remaining (%) 58 | 100 . . . 51 . . . . 2 . . . . 89 . . . . 25 100 . . 45 . Volleys Fired 106 | . 4 70 1 . . 24 7 . . . . . . . . . . . . . . . . . Largest 4 | . 2 4 2 . . 2 2 . . . . . . . . . . . . . . . . . Hottest 114 | . 40 103 60 . . 114 114 . . . . . . . . . . . . . . . . . Shots Fired 214 | . 8 145 2 . . 46 13 . . . . . . . . . . . . . . . . . Gun 165 | . 8 96 2 . . 46 13 . . . . . . . . . . . . . . . . . Cannon 49 | . . 49 . . . . . . . . . . . . . . . . . . . . . . Launcher . | . . . . . . . . . . . . . . . . . . . . . . . . . Special . | . . . . . . . . . . . . . . . . . . . . . . . . . Kinetic 187 | . 8 145 2 . . 25 7 . . . . . . . . . . . . . . . . . Thermal 27 | . . . . . . 21 6 . . . . . . . . . . . . . . . . . Explosive . | . . . . . . . . . . . . . . . . . . . . . . . . . Electromagnetic . | . . . . . . . . . . . . . . . . . . . . . . . . . Robot Hit Streak 23 | . 2 23 3 . . 7 2 . . . . . . . . . . . . . . . . . Robot Miss Streak 4 | . 2 4 . . . 4 3 . . . . . . . . . . . . . . . . . Penetration Max . | . . . . . . . . . . . . . . . . . . . . . . . . . Secondary Targets 2 | . 2 . . . . . . . . . . . . . . . . . . . . . . . Max Gunslinging Chain 1 | . 1 . . . . . . . . . . . . . . . . . . . . . . . Shots Hit Robots 144 | . 4 84 2 . 1 33 6 . . 2 6 . 6 . . . . . . . . . . . Core Hits 53 | . 4 31 2 . 1 11 3 . . . . . 1 . . . . . . . . . . . Critical Kills 1 | . . 1 . . . . . . . . . . . . . . . . . . . . . . Critical Parts Destroyed 6 | . . . . . . 1 1 . . 2 1 . 1 . . . . . . . . . . . Critical Strikes 11 | . . 2 . . . 4 1 . . 2 1 . 1 . . . . . . . . . . . Burn 3 | . . . . . . 3 . . . . . . . . . . . . . . . . . . Destroy 3 | . . 1 . . . 1 1 . . . . . . . . . . . . . . . . . Blast 1 | . . 1 . . . . . . . . . . . . . . . . . . . . . . Smash 4 | . . . . . . . . . . 2 1 . 1 . . . . . . . . . . . Melee Attacks 46 | . . . . . 3 11 . 3 1 5 6 7 6 2 1 1 . . . . . . . . Impact 32 | . . . . . . . . 3 1 5 6 7 6 2 1 1 . . . . . . . . Slashing 14 | . . . . . 3 11 . . . . . . . . . . . . . . . . . . Piercing . | . . . . . . . . . . . . . . . . . . . . . . . . . Sneak Attacks 9 | . . . . . 1 1 . . . 1 6 . . . . . . . . . . . . . Combat Hostiles 1 | . . . . . . 1 . . . . . . . . . . . . . . . . . . Follow-up Attacks . | . . . . . . . . . . . . . . . . . . . . . . . . . Damage Inflicted 4188 | . 49 1584 37 . 77 945 149 . . 112 655 . 555 . . . . 18 . . . . . 7 Guns 1989 | . 49 1183 37 . . 571 149 . . . . . . . . . . . . . . . . . Cannons 401 | . . 401 . . . . . . . . . . . . . . . . . . . . . . Explosions . | . . . . . . . . . . . . . . . . . . . . . . . . . Melee 1770 | . . . . . 77 371 . . . 112 655 . 555 . . . . . . . . . . . Ramming 28 | . . . . . . 3 . . . . . . . . . . . 18 . . . . . 7 Kinetic 2076 | . 49 1584 37 . . 325 81 . . . . . . . . . . . . . . . . . Thermal 314 | . . . . . . 246 68 . . . . . . . . . . . . . . . . . Explosive . | . . . . . . . . . . . . . . . . . . . . . . . . . Electromagnetic . | . . . . . . . . . . . . . . . . . . . . . . . . . Impact 1322 | . . . . . . . . . . 112 655 . 555 . . . . . . . . . . . Slashing 448 | . . . . . 77 371 . . . . . . . . . . . . . . . . . . Piercing . | . . . . . . . . . . . . . . . . . . . . . . . . . Highest Corruption 9 | . . . . . . 9 9 9 9 . . . . . . . . . . . . . . 7 Average Corruption 8 | . . . . . . 8 9 9 9 . . . . . . . . . . . . . . 4 Corruption Purged . | . . . . . . . . . . . . . . . . . . . . . . . . . Corruption Blocked 8 | . . . . . . . . . . . . . . . . . . 2 . . 5 . . 1 Effects 63 | . . . . . . 46 4 1 5 . . . . . . . . . . . . . . 7 Message Errors 10 | . . . . . . 9 . . . . . . . . . . . . . . . . . 1 Matter Fused 16 | . . . . . . 11 . . 1 . . . . . . . . . . . . . . 4 Heat Flow Errors 5 | . . . . . . 5 . . . . . . . . . . . . . . . . . . Energy Discharges 5 | . . . . . . 5 . . . . . . . . . . . . . . . . . . Parts Rejected 1 | . . . . . . . . . . . . . . . . . . . . . . . . 1 Parts Fused 1 | . . . . . . . . . 1 . . . . . . . . . . . . . . . Data Loss (minor) 9 | . . . . . . 4 2 1 2 . . . . . . . . . . . . . . . Data Loss (major) 7 | . . . . . . 6 . . . . . . . . . . . . . . . . . 1 Misfires 4 | . . . . . . 4 . . . . . . . . . . . . . . . . . . Alerts 3 | . . . . . . 1 1 . 1 . . . . . . . . . . . . . . . Weapon Failures 2 | . . . . . . 1 1 . . . . . . . . . . . . . . . . . Overload Shots . | . . . . . . . . . . . . . . . . . . . . . . . . . Overflow Damage 1038 | . . 9 . . . . . . . 112 622 . 295 . . . . . . . . . . . Projectiles 68 | . . 9 . . . . . . . . . . 59 . . . . . . . . . . . Explosions . | . . . . . . . . . . . . . . . . . . . . . . . . . Melee 970 | . . . . . . . . . . 112 622 . 236 . . . . . . . . . . . Knockbacks 5 | . . 3 . . . . . . . . . . 2 . . . . . . . . . . . Impact 1 | . . . . . . . . . . . . . 1 . . . . . . . . . . . Kinetic 3 | . . 3 . . . . . . . . . . . . . . . . . . . . . . Secondary 1 | . . . . . . . . . . . . . 1 . . . . . . . . . . . Self-Inflicted Damage 13 | . . . . . . 1 . . . . . . . . . . . 9 . . . . . 3 Shots . | . . . . . . . . . . . . . . . . . . . . . . . . . Rammed 4 | . . . . . . 1 . . . . . . . . . . . 1 . . . . . 2 Targets Rammed 4 | . . . . . . 1 . . . . . . . . . . . 1 . . . . . 2 Kicked . | . . . . . . . . . . . . . . . . . . . . . . . . . Crushed . | . . . . . . . . . . . . . . . . . . . . . . . . . Highest Temperature 290 | . . . 30 . . 290 54 . . . . . . . . . . . . . . . . . Average Temperature 59 | . . . 18 . . 68 25 . . . . . . . . . . . . . . . . . Received Heat Transfer 1371 | . . 204 . . 24 636 27 9 30 9 . . . 9 . . . 180 . . 27 9 45 162 Effects 1 | . . . . . . 1 . . . . . . . . . . . . . . . . . . Interference 1 | . . . . . . 1 . . . . . . . . . . . . . . . . . . Siege Activations . | . . . . . . . . . . . . . . . . . . . . . . . . . Martial Activations . | . . . . . . . . . . . . . . . . . . . . . . . . . Shielding Activations . | . . . . . . . . . . . . . . . . . . . . . . . . . Robots Disrupted . | . . . . . . . . . . . . . . . . . . . . . . . . . Combat Hostiles . | . . . . . . . . . . . . . . . . . . . . . . . . . Robots Corrupted 3 | . . . . . . . . . . 1 . . 2 . . . . . . . . . . . Combat Hostiles 2 | . . . . . . . . . . . . . 2 . . . . . . . . . . . Parts Fried 6 | . . . . . . . . . . 4 2 . . . . . . . . . . . . . Impact Corruptions 48 | . . . . . . . . . . 3 31 . 14 . . . . . . . . . . . Robots Melted . | . . . . . . . . . . . . . . . . . . . . . . . . . Combat Hostiles . | . . . . . . . . . . . . . . . . . . . . . . . . . Parts Melted 2 | . . 1 . . . 1 . . . . . . . . . . . . . . . . . . Heat Transferred 703 | . . . . . . 592 111 . . . . . . . . . . . . . . . . . Parts Sabotaged . | . . . . . . . . . . . . . . . . . . . . . . . . . Parts Stolen . | . . . . . . . . . . . . . . . . . . . . . . . . . Parts Stripped . | . . . . . . . . . . . . . . . . . . . . . . . . . Power Chain Reactions . | . . . . . . . . . . . . . . . . . . . . . . . . . Alert | -11 -10 -10 -8 -8 -6 -6 -6 -6 -6 -5 -5 -5 -5 -4 -4 -4 -4 -4 -3 -3 -2 -2 -2 -1 ------- Run | Yrd Mat Sub Rec Scr Fac Ext Cet Arc Hub Fac Upp Upp Zhi Pro Fac Upp Upp War Pro Res Res Qua Frg Acc Maximum Alert Level 1 | . . . . . . 1 . . . . . . . . . . . . . . . . . 1 Low Security (%) 98 | 100 100 . 100 . 100 98 100 100 100 100 . . . . 100 . . . . 100 100 100 100 92 Level 1 1 | . . . . . . 1 . . . . . . . . . . . . . . . . . 7 Level 2 . | . . . . . . . . . . . . . . . . . . . . . . . . . Level 3 . | . . . . . . . . . . . . . . . . . . . . . . . . . Level 4 . | . . . . . . . . . . . . . . . . . . . . . . . . . Level 5 . | . . . . . . . . . . . . . . . . . . . . . . . . . High Security . | . . . . . . . . . . . . . . . . . . . . . . . . . Max Security . | . . . . . . . . . . . . . . . . . . . . . . . . . Peak Influence 218 | . 80 . 80 . 42 218 100 16 15 15 . . . . 15 . . . . 23 115 64 15 208 Initial 100 | . . . 70 . . 15 100 . . . . . . . . . . . . 23 . 64 15 . Average 34 | . 17 . 23 . 6 48 37 2 1 2 . . . . 2 . . . . 8 14 49 8 54 Influence Increases 2014 | . 90 210 20 . 54 739 2 16 15 38 . . 5 15 15 . 45 165 45 . 135 15 . 390 Destroy 0b10 Robot/C 680 | . 80 140 20 . . 440 . . . . . . . . . . . . . . . . . . Destroy 0b10 Robot/NC 35 | . . . . . . 20 . . . 10 . . 5 . . . . . . . . . . . Destroy Leader 52 | . 10 10 . . . 30 . . . 2 . . . . . . . . . . . . . . Allied During Kill 152 | . . . . . . 152 . . . . . . . . . . . . . . . . . . Successful Hack 34 | . . . . . 7 20 . . . 7 . . . . . . . . . . . . . . Disable Machine 90 | . . . . . . 30 . 15 15 15 . . . . 15 . . . . . . . . . Destroy Structure 26 | . . . . . 2 17 2 1 . 4 . . . . . . . . . . . . . . Partial Spotted 30 | . . . . . 15 . . . . . . . . . . . . . . . . 15 . . Lose Combat Pursuer 915 | . . 60 . . 30 30 . . . . . . . 15 . . 45 165 45 . 135 . . 390 Influence Decreases 1818 | . 50 102 168 . 22 591 182 16 15 38 . . 5 15 10 5 10 127 83 35 20 101 29 194 Entered New Map 383 | . . 20 78 . . 17 80 . . . . . . . . 3 . 35 73 12 . 51 14 . Time Decay 1002 | . 50 52 90 . 22 380 22 10 15 22 . . 5 5 10 . 10 42 10 23 20 50 10 154 Lost Part 293 | . . 30 . . . 94 40 6 . 16 . . . 10 . 2 . 50 . . . . 5 40 Lost Ally 140 | . . . . . . 100 40 . . . . . . . . . . . . . . . . . Squads Dispatched 18 | . . . . . . 4 1 . . 2 . . . . 1 . . . . 1 1 . 2 6 Investigation 4 | . . . . . . 3 1 . . . . . . . . . . . . . . . . . Extermination 4 | . . . . . . . . . . . . . . . . . . . . . 1 . . 3 Reinforcement 10 | . . . . . . 1 . . . 2 . . . . 1 . . . . 1 . . 2 3 Assault . | . . . . . . . . . . . . . . . . . . . . . . . . . Garrison . | . . . . . . . . . . . . . . . . . . . . . . . . . Intercept . | . . . . . . . . . . . . . . . . . . . . . . . . . Searches Triggered . | . . . . . . . . . . . . . . . . . . . . . . . . . Construction Impeded . | . . . . . . . . . . . . . . . . . . . . . . . . . Haulers Reinforced 1 | . . . . . . . . . . 1 . . . . . . . . . . . . . . Active Scanning Responses . | . . . . . . . . . . . . . . . . . . . . . . . . . Cargo Convoy Interrupts . | . . . . . . . . . . . . . . . . . . . . . . . . . Stealth | -11 -10 -10 -8 -8 -6 -6 -6 -6 -6 -5 -5 -5 -5 -4 -4 -4 -4 -4 -3 -3 -2 -2 -2 -1 --------- Run | Yrd Mat Sub Rec Scr Fac Ext Cet Arc Hub Fac Upp Upp Zhi Pro Fac Upp Upp War Pro Res Res Qua Frg Acc Distress Signals 9 | . . . . . . . 1 . . . . . . . . . . 3 . . 1 . 2 2 Communications Jammed . | . . . . . . . . . . . . . . . . . . . . . . . . . Distress Signals . | . . . . . . . . . . . . . . . . . . . . . . . . . Times Spotted 269 | . 5 28 . . 6 26 7 3 1 4 . . . 14 2 3 8 72 2 6 23 3 15 41 Peak Tracking Total 20 | . 5 4 . . 4 4 7 2 1 2 . . . 11 1 2 5 20 3 5 15 3 14 14 Tactical Retreats 25 | . . 2 . . 1 1 . . . . . . . 1 . . 1 5 1 . 3 . . 10 Traps | -11 -10 -10 -8 -8 -6 -6 -6 -6 -6 -5 -5 -5 -5 -4 -4 -4 -4 -4 -3 -3 -2 -2 -2 -1 ------- Run | Yrd Mat Sub Rec Scr Fac Ext Cet Arc Hub Fac Upp Upp Zhi Pro Fac Upp Upp War Pro Res Res Qua Frg Acc Traps Triggered 10 | . . 4 . . . . . . . 1 . . . . 1 . . . . . 3 . . 1 Indirectly . | . . . . . . . . . . . . . . . . . . . . . . . . . Trap Hack Attempts . | . . . . . . . . . . . . . . . . . . . . . . . . . Triggered . | . . . . . . . . . . . . . . . . . . . . . . . . . Disarmed . | . . . . . . . . . . . . . . . . . . . . . . . . . Reprogrammed . | . . . . . . . . . . . . . . . . . . . . . . . . . Reused . | . . . . . . . . . . . . . . . . . . . . . . . . . Traps Extracted . | . . . . . . . . . . . . . . . . . . . . . . . . . Installed . | . . . . . . . . . . . . . . . . . . . . . . . . . Triggered . | . . . . . . . . . . . . . . . . . . . . . . . . . Machines | -11 -10 -10 -8 -8 -6 -6 -6 -6 -6 -5 -5 -5 -5 -4 -4 -4 -4 -4 -3 -3 -2 -2 -2 -1 ---------- Run | Yrd Mat Sub Rec Scr Fac Ext Cet Arc Hub Fac Upp Upp Zhi Pro Fac Upp Upp War Pro Res Res Qua Frg Acc Machines Disabled 9 | . . 1 . . . 4 . 1 1 1 . . . . 1 . . . . . . . . . Max in Single Turn 1 | . . 1 . . . 1 . 1 1 1 . . . . 1 . . . . . . . . . Machines Repaired . | . . . . . . . . . . . . . . . . . . . . . . . . . Machines Dismantled . | . . . . . . . . . . . . . . . . . . . . . . . . . Machines Sabotaged . | . . . . . . . . . . . . . . . . . . . . . . . . . Overloaded Fab Kills . | . . . . . . . . . . . . . . . . . . . . . . . . . Hacking | -11 -10 -10 -8 -8 -6 -6 -6 -6 -6 -5 -5 -5 -5 -4 -4 -4 -4 -4 -3 -3 -2 -2 -2 -1 --------- Run | Yrd Mat Sub Rec Scr Fac Ext Cet Arc Hub Fac Upp Upp Zhi Pro Fac Upp Upp War Pro Res Res Qua Frg Acc Machines Accessed 31 | . . 3 . 3 4 6 1 . 1 1 . 1 4 . . 1 1 . . 1 . . . 4 Terminals 13 | . . . . . 3 6 1 . 1 . . . . . . . . . . . . . . 2 Fabricators 4 | . . . . . 1 . . . . 1 . . . . . . . . . 1 . . . 1 Repair Stations . | . . . . . . . . . . . . . . . . . . . . . . . . . Recycling Units . | . . . . . . . . . . . . . . . . . . . . . . . . . Scanalyzers . | . . . . . . . . . . . . . . . . . . . . . . . . . Garrison Access 1 | . . . . . . . . . . . . . . . . . . . . . . . . 1 Total Hacks 77 | . . 4 . 18 8 13 3 . 1 2 . 1 16 . . 4 1 . . 2 . . . 4 Successful 51 | . . 4 . 18 2 3 . . . 2 . 1 16 . . 4 1 . . . . . . . Failed 26 | . . . . . 6 10 3 . 1 . . . . . . . . . . 2 . . . 4 Catastrophic 5 | . . . . . . 1 1 . 1 . . . . . . . . . . . . . . 2 Database Lockouts . | . . . . . . . . . . . . . . . . . . . . . . . . . Manual 10 | . . . . . 7 . 1 . 1 . . . . . . . . . . . . . . 1 Terminals 26 | . . . . . 7 13 3 . 1 . . . . . . . . . . . . . . 2 Fabricators 6 | . . . . . 1 . . . . 2 . . . . . . . . . 2 . . . 1 Repair Stations . | . . . . . . . . . . . . . . . . . . . . . . . . . Recycling Units . | . . . . . . . . . . . . . . . . . . . . . . . . . Scanalyzers . | . . . . . . . . . . . . . . . . . . . . . . . . . Garrison Access 1 | . . . . . . . . . . . . . . . . . . . . . . . . 1 Terminal Hacks 48 | . . 4 . 18 1 3 . . . . . 1 16 . . 4 1 . . . . . . . Record 27 | . . 2 . 17 . . . . . . . . 4 . . 4 . . . . . . . . Part Schematic 4 | . . . . . . . . . . . . . 4 . . . . . . . . . . . Robot Analysis 4 | . . . . . . . . . . . . . 4 . . . . . . . . . . . Prototype ID Bank 4 | . . . . . . . . . . . . . 4 . . . . . . . . . . . Open Door 6 | . . 1 . . . 3 . . . . . 1 . . . . 1 . . . . . . . Branch Access Points 1 | . . . . . 1 . . . . . . . . . . . . . . . . . . . Proto ID Catalog 2 | . . 1 . 1 . . . . . . . . . . . . . . . . . . . . Fabricator Hacks 2 | . . . . . . . . . . 2 . . . . . . . . . . . . . . Network Status 1 | . . . . . . . . . . 1 . . . . . . . . . . . . . . Build 1 | . . . . . . . . . . 1 . . . . . . . . . . . . . . Repair Station Hacks . | . . . . . . . . . . . . . . . . . . . . . . . . . Recycling Unit Hacks . | . . . . . . . . . . . . . . . . . . . . . . . . . Scanalyzer . | . . . . . . . . . . . . . . . . . . . . . . . . . Garrison Access Hacks . | . . . . . . . . . . . . . . . . . . . . . . . . . Unauthorized Hacks 1 | . . . . . 1 . . . . . . . . . . . . . . . . . . . Terminals 1 | . . . . . 1 . . . . . . . . . . . . . . . . . . . Assimilate 1 | . . . . . 1 . . . . . . . . . . . . . . . . . . . Fabricators . | . . . . . . . . . . . . . . . . . . . . . . . . . Repair Stations . | . . . . . . . . . . . . . . . . . . . . . . . . . Recycling Units . | . . . . . . . . . . . . . . . . . . . . . . . . . Scanalyzers . | . . . . . . . . . . . . . . . . . . . . . . . . . Garrison Access . | . . . . . . . . . . . . . . . . . . . . . . . . . Data Cores Recovered 1 | . . . . . . 1 . . . . . . . . . . . . . . . . . . Used . | . . . . . . . . . . . . . . . . . . . . . . . . . Hacking Detections 14 | . . . . . 3 4 1 . 1 . . . . . . . . . . 1 . . . 4 Full Trace Events 3 | . . . . . . 2 1 . . . . . . . . . . . . . . . . . Feedback Events . | . . . . . . . . . . . . . . . . . . . . . . . . . Feedback Blocked . | . . . . . . . . . . . . . . . . . . . . . . . . . Robot Schematics Acquired . | . . . . . . . . . . . . . . . . . . . . . . . . . Robots Built . | . . . . . . . . . . . . . . . . . . . . . . . . . Authchips . | . . . . . . . . . . . . . . . . . . . . . . . . . Time 169 | . . . . . . . . . . 169 . . . . . . . . . . . . . . Total Robot Build Rating . | . . . . . . . . . . . . . . . . . . . . . . . . . Part Schematics Acquired 4 | . . . . . . . . . . . . . 4 . . . . . . . . . . . Parts Built . | . . . . . . . . . . . . . . . . . . . . . . . . . Authchips . | . . . . . . . . . . . . . . . . . . . . . . . . . Time . | . . . . . . . . . . . . . . . . . . . . . . . . . Total Part Build Rating . | . . . . . . . . . . . . . . . . . . . . . . . . . Parts Repaired . | . . . . . . . . . . . . . . . . . . . . . . . . . Time . | . . . . . . . . . . . . . . . . . . . . . . . . . Parts Recycled . | . . . . . . . . . . . . . . . . . . . . . . . . . Recycled Matter . | . . . . . . . . . . . . . . . . . . . . . . . . . Retrieved Matter . | . . . . . . . . . . . . . . . . . . . . . . . . . Retrieved Components . | . . . . . . . . . . . . . . . . . . . . . . . . . Parts Scanalyzed . | . . . . . . . . . . . . . . . . . . . . . . . . . Part Schematics Acquired . | . . . . . . . . . . . . . . . . . . . . . . . . . Parts Damaged . | . . . . . . . . . . . . . . . . . . . . . . . . . Bothacking | -11 -10 -10 -8 -8 -6 -6 -6 -6 -6 -5 -5 -5 -5 -4 -4 -4 -4 -4 -3 -3 -2 -2 -2 -1 ------------ Run | Yrd Mat Sub Rec Scr Fac Ext Cet Arc Hub Fac Upp Upp Zhi Pro Fac Upp Upp War Pro Res Res Qua Frg Acc Used RIF Installer . | . . . . . . . . . . . . . . . . . . . . . . . . . Robots Hacked . | . . . . . . . . . . . . . . . . . . . . . . . . . Non-combat . | . . . . . . . . . . . . . . . . . . . . . . . . . Combat . | . . . . . . . . . . . . . . . . . . . . . . . . . Robot Hacks Applied . | . . . . . . . . . . . . . . . . . . . . . . . . . Relay Couplers Released . | . . . . . . . . . . . . . . . . . . . . . . . . . Fabnet Peak Effective % . | . . . . . . . . . . . . . . . . . . . . . . . . . Robots Rewired 8 | . . . . . . 8 . . . . . . . . . . . . . . . . . . Allies Hacked . | . . . . . . . . . . . . . . . . . . . . . . . . . Hacks Repelled . | . . . . . . . . . . . . . . . . . . . . . . . . . Allies | -11 -10 -10 -8 -8 -6 -6 -6 -6 -6 -5 -5 -5 -5 -4 -4 -4 -4 -4 -3 -3 -2 -2 -2 -1 -------- Run | Yrd Mat Sub Rec Scr Fac Ext Cet Arc Hub Fac Upp Upp Zhi Pro Fac Upp Upp War Pro Res Res Qua Frg Acc Total Allies 13 | . . . . . 1 12 . . . . . . . . . . . . . . . . . . Largest Group 5 | . . . . . . 5 2 . . . . . . . . . . . . . . . . . Highest-Rated Group 168 | . . . . . . 168 65 . . . . . . . . . . . . . . . . . Highest-Rated Ally 39 | . . . . . . 39 34 . . . . . . . . . . . . . . . . . Total Orders . | . . . . . . . . . . . . . . . . . . . . . . . . . Ally Attacks 106 | . . . . . . 103 3 . . . . . . . . . . . . . . . . . Total Damage 2239 | . . . . . . 2218 21 . . . . . . . . . . . . . . . . . Kills 26 | . . . . . . 26 . . . . . . . . . . . . . . . . . . Allies Corrupted . | . . . . . . . . . . . . . . . . . . . . . . . . . Allies Melted 3 | . . . . . . 1 . . . . . . . . . . . 2 . . . . . . Intel | -11 -10 -10 -8 -8 -6 -6 -6 -6 -6 -5 -5 -5 -5 -4 -4 -4 -4 -4 -3 -3 -2 -2 -2 -1 ------- Run | Yrd Mat Sub Rec Scr Fac Ext Cet Arc Hub Fac Upp Upp Zhi Pro Fac Upp Upp War Pro Res Res Qua Frg Acc Active Infowar (turns) 3621 | . . . . . . 71 . . 94 91 111 123 122 138 122 163 344 1149 121 91 182 104 44 551 Sensors 2078 | . . . . . . . . . 94 91 111 123 122 117 17 163 344 896 . . . . . . Structural 71 | . . . . . . 71 . . . . . . . . . . . . . . . . . . Decoding 3161 | . . . . . . . . . . . . 30 122 138 122 163 344 1149 121 91 182 104 44 551 Robot Analysis Total 4 | . . . . . . . . . . . . . 4 . . . . . . . . . . . Derelict Logs Recovered 8 | . . 3 . 2 . . . . . . . . . 2 . 1 . . . . . . . . Drone Launches . | . . . . . . . . . . . . . . . . . . . . . . . . . Drone Recoveries . | . . . . . . . . . . . . . . . . . . . . . . . . . Decoded 0b10 Intel 33 | . . . . . . . . . . . . . . . 5 . . . . . 6 1 2 19 Emergency Access 1 | . . . . . . . . . . . . . . . 1 . . . . . . . . . Items 1 | . . . . . . . . . . . . . . . 1 . . . . . . . . . Garrisons 2 | . . . . . . . . . . . . . . . . . . . . . 1 . . 1 Patrols 16 | . . . . . . . . . . . . . . . 1 . . . . . 4 1 . 10 Reinforcements 2 | . . . . . . . . . . . . . . . . . . . . . . . 1 1 Guards 11 | . . . . . . . . . . . . . . . 2 . . . . . 1 . 1 7 Exploration | -11 -10 -10 -8 -8 -6 -6 -6 -6 -6 -5 -5 -5 -5 -4 -4 -4 -4 -4 -3 -3 -2 -2 -2 -1 ------------- Run | Yrd Mat Sub Rec Scr Fac Ext Cet Arc Hub Fac Upp Upp Zhi Pro Fac Upp Upp War Pro Res Res Qua Frg Acc Turns Passed 13199 | 112 303 3871 358 3239 107 1503 93 30 114 104 111 123 122 138 122 163 344 1149 121 91 182 104 44 551 Spaces Moved 11648 | 60 80 1981 282 1929 330 918 92 28 194 218 259 197 163 302 224 303 396 1219 242 201 502 300 132 1096 Core 1557 | 8 . 3 . 1 . 18 . . . . . . . 21 208 137 . 52 242 66 . . 1 800 Treads 3036 | 52 80 907 . 1347 . 633 17 . . . . . . . . . . . . . . . . . Legs 1168 | . . 1067 . . . 101 . . . . . . . . . . . . . . . . . . Wheels 295 | . . 4 282 9 . . . . . . . . . . . . . . . . . . . . Hover 7 | . . . . . . . . . . . . . . . . . . 7 . . . . . . Flight 5585 | . . . . 572 330 166 75 28 194 218 259 197 163 281 16 166 396 1160 . 135 502 300 131 296 Fastest Speed 26 | 50 160 110 120 112 26 26 34 34 37 37 37 34 34 34 40 40 40 30 50 34 34 32 32 36 Average Speed 94 | 145 160 180 120 166 26 129 57 35 37 37 37 35 34 35 49 44 40 37 50 43 34 33 33 47 Slowest Speed 450 | 160 160 260 120 450 26 160 160 37 37 37 37 37 34 50 50 50 40 120 50 50 34 34 50 50 Overloaded Moves . | . . . . . . . . . . . . . . . . . . . . . . . . . Propulsion Burnouts . | . . . . . . . . . . . . . . . . . . . . . . . . . Robots Hopped 51 | . . . . . 4 2 4 . 2 . . . . 1 2 3 . . . 2 20 1 2 8 Potential Cave-ins 2 | . . . . . . . . . . . . . . . . . . 2 . . . . . . Cave-ins Triggered . | . . . . . . . . . . . . . . . . . . . . . . . . . Exploration Rate (%) 42 | 4 6 97 78 95 14 86 49 60 21 6 45 38 60 53 6 48 55 87 48 7 20 42 8 37 Regions Visited 24 Branch Regions 17 Pre-discovered Areas 9 | . . 1 . 4 . . . . . . . . 3 1 . . . . . . . . . . Known Exits Taken 17 | . . 1 . . 1 . . . 1 1 1 1 1 1 1 1 1 1 1 1 1 1 1 . Unknown Exits Taken 7 | 1 1 . 1 1 . 1 1 1 . . . . . . . . . . . . . . . . Scrap Searched 24 | . . 2 . 9 . . . . . . 2 1 . 3 . 4 3 . . . . . . . Spaces Dug 14 | . . . . . 2 . . 1 . 2 . 7 . 1 . 1 . . . . . . . . Terrain Destroyed 17 | . . 2 . . 2 1 . 1 . 2 . 7 . 1 . 1 . . . . . . . . Melee 14 | . . . . . 2 . . 1 . 2 . 7 . 1 . 1 . . . . . . . . Projectile 3 | . . 2 . . . 1 . . . . . . . . . . . . . . . . . . AOE . | . . . . . . . . . . . . . . . . . . . . . . . . . Terrain Rammed . | . . . . . . . . . . . . . . . . . . . . . . . . . Walls Destroyed . | . . . . . . . . . . . . . . . . . . . . . . . . . Machines Disabled . | . . . . . . . . . . . . . . . . . . . . . . . . . Actions | -11 -10 -10 -8 -8 -6 -6 -6 -6 -6 -5 -5 -5 -5 -4 -4 -4 -4 -4 -3 -3 -2 -2 -2 -1 --------- Run | Yrd Mat Sub Rec Scr Fac Ext Cet Arc Hub Fac Upp Upp Zhi Pro Fac Upp Upp War Pro Res Res Qua Frg Acc Total 13457 | 85 249 2137 299 1972 341 1169 117 44 231 231 264 238 218 331 231 325 580 1918 241 202 492 300 129 1113 Wait 1362 | 8 154 42 12 5 8 108 11 9 35 6 . 30 44 17 3 21 183 665 . . . . . 1 Move 11532 | 59 79 1980 281 1928 321 913 85 27 189 217 258 196 162 299 219 296 395 1218 241 196 468 297 127 1081 Hop 41 | . . . . . 4 2 2 . 2 . . . . 1 2 3 . . . 2 13 1 2 7 Pick Up 87 | 12 7 14 2 16 1 22 . . . . . 2 1 . 1 . . 2 . 1 1 . . 5 Fast Attach 55 | . . 1 . 1 . 10 . . 2 3 . 1 4 3 2 2 1 11 . 1 1 2 . 10 Attach 62 | 6 1 11 1 6 4 12 5 2 1 . . 2 . 1 1 1 1 2 . 2 . . . 3 Detach 11 | . . . . . . . 1 2 1 . . . . 3 1 1 . 2 . . . . . . Swap 14 | . . 5 1 1 . 7 . . . . . . . . . . . . . . . . . . Drop 84 | . 4 14 1 15 . 15 6 1 . . . . 1 5 1 . . 17 . . . . . 4 Fire 106 | . 4 70 1 . . 24 7 . . . . . . . . . . . . . . . . . Melee 46 | . . . . . 3 11 . 3 1 5 6 7 6 2 1 1 . . . . . . . . Ram 4 | . . . . . . 1 . . . . . . . . . . . 1 . . . . . 2 Kick . | . . . . . . . . . . . . . . . . . . . . . . . . . Crush . | . . . . . . . . . . . . . . . . . . . . . . . . . Escape Stasis 9 | . . . . . . . . . . . . . . . . . . . . . 9 . . . Rewire 44 | . . . . . . 44 . . . . . . . . . . . . . . . . . . Trap . | . . . . . . . . . . . . . . . . . . . . . . . . . Miscellaneous . | . . . . . . . . . . . . . . . . . . . . . . . . . Route ------- -11/Scrapyard -10/Materials -10/Subcaves (discovered 3 exits: [*Mat x2] / *Rec) -8/Recycling (discovered 2 exits: *Fac / *Scr) -8/Scraptown (discovered 2 exits: *Fac x2) -6/Factory (discovered 5 exits: Fac / Low x2 / *Ext x2) -6/Extension (discovered 2 exits: *Fac / *Cet) -6/Cetus -6/Archives -6/Hub_04(d) -5/Factory (discovered 2 exits: *Upp x2) -5/Upper Caves -5/Upper Caves (discovered 2 exits: Fac / *Zhi) -5/Zhirov -4/Proximity Caves -4/Factory (discovered 2 exits: *Upp / Arm) -4/Upper Caves -4/Upper Caves (discovered 2 exits: *Res / *War) -4/Warlord -3/Proximity Caves -3/Research (discovered 2 exits: *Res x2) -2/Research -2/Quarantine (discovered 2 exits: *Sec / *Frg) -2/Protoforge -1/Access History --------- Turn | Location | Event 21 | -11/Scrapyard | Discovered new exit (range 15) 113 | -11/Scrapyard | Entered Materials 281 | -10/Materials | Discovered new exit (range 10) 304 | -10/Materials | Build established: Mutant 416 | -10/Materials | Entered Subcaves 431 | -10/Subcaves | Learned location of Storage (-8) 445 | -10/Subcaves | Identified exit to Recycling 468 | -10/Subcaves | A swath of the cavern ceiling suddenly collapsed 975 | -10/Subcaves | Disturbed a concealed Subdweller 1019 | -10/Subcaves | Discovered new exit (range 7) 1044 | -10/Subcaves | Learned location of 1 exit from Materials 1518 | -10/Subcaves | Visited 4L-MR0's lab 1538 | -10/Subcaves | Found Tower Shield 1540 | -10/Subcaves | Attached Tower Shield, gained temporary slots: Power, Propulsion x2, Utility x2, Weapon x2 1827 | -10/Subcaves | Build established: Gunner 2263 | -10/Subcaves | A swath of the cavern ceiling suddenly collapsed 2868 | -10/Subcaves | Shifting Twisted Machinery released Mak. Leg 2877 | -10/Subcaves | Shifting Twisted Machinery released Sub. Optics 3166 | -10/Subcaves | A Subdweller sparked back to life 3166 | -10/Subcaves | A Subdweller sparked back to life 3166 | -10/Subcaves | A Subdweller sparked back to life 3445 | -10/Subcaves | Visited Clippyterm 3450 | -10/Subcaves | Learned Factory garrison access intel 3490 | -10/Subcaves | Build established: Mutant 3668 | -10/Subcaves | Discovered new exit (range 6) 4287 | -10/Subcaves | Entered Recycling 4447 | -8/Recycling | Discovered new exit (range 7) 4616 | -8/Recycling | Scanned before Scraplab entrance 4633 | -8/Recycling | Entered Scraplab 4642 | -8/Recycling | Discovered new exit (range 2) 4645 | -8/Recycling | Entered Scraptown 4852 | -8/Scraptown | Heard Great Nut preacher, LISTEN AND RECITE! 5078 | -8/Scraptown | Received an X-ray algorithm 5854 | -8/Scraptown | Visited Comm Corps 5912 | -8/Scraptown | Visited Bundlers 6027 | -8/Scraptown | Visited Shadow of the Wyrm 6053 | -8/Scraptown | Visited Cyclists 6093 | -8/Scraptown | Visited TADAMA 6179 | -8/Scraptown | Scanned Subdweller tech in exchange for log data 6182 | -8/Scraptown | Learned 8 Factory zone layouts 6184 | -8/Scraptown | Learned Factory garrison access intel 6206 | -8/Scraptown | Discovered new exit (range 7) 6350 | -8/Scraptown | Visited Assassins FH 6382 | -8/Scraptown | Visited The Evicted 6413 | -8/Scraptown | Visited UFD Registry 6413 | -8/Scraptown | Registered with UFD as "Cogback" 6482 | -8/Scraptown | Entered Cyclist Reading Room 6578 | -8/Scraptown | Visited DA-N13 Charitable Foundation 6584 | -8/Scraptown | Found DCF Scrap (31 items) 6632 | -8/Scraptown | Visited Junk Cannon Lab 6666 | -8/Scraptown | Visited Science Guys 6875 | -8/Scraptown | Visited Junk Repository 6920 | -8/Scraptown | Visited Derelict Rescue Squad 6946 | -8/Scraptown | Visited A0-MCA Data Center 6962 | -8/Scraptown | Visited Modified Component R&D 7053 | -8/Scraptown | Visited Chapter 10 7094 | -8/Scraptown | Visited Cartography Club 7440 | -8/Scraptown | Learned location of Recycling (-8) 7440 | -8/Scraptown | Learned 12 Materials zone layouts 7440 | -8/Scraptown | Learned 8 Factory zone layouts 7440 | -8/Scraptown | Learned 12 Lower Caves zone layouts 7440 | -8/Scraptown | Learned 16 Upper Caves zone layouts 7440 | -8/Scraptown | Learned 24 Upper Caves zone layouts 7440 | -8/Scraptown | Learned 8 Proximity Caves zone layouts 7440 | -8/Scraptown | Learned Materials emergency access door positions 7440 | -8/Scraptown | Learned location of 1 exit from Lower Caves 7440 | -8/Scraptown | Learned location of 3 exits from Upper Caves 7497 | -8/Scraptown | Found Deep Structural Scanner 7737 | -8/Scraptown | Given a C rating by A0-MCA 7740 | -8/Scraptown | Found A0-MCA's Component Scanner 7877 | -8/Scraptown | Discovered new exit (range 5) 7884 | -8/Scraptown | Entered Factory 7884 | -6/Factory | Evolved 8 slots: Propulsion x3, Utility x5 7885 | -6/Factory | Identified exit to Lower Caves 7885 | -6/Factory | Identified exit to Factory 7886 | -6/Factory | Loaded intel: 4 garrison access locations 7981 | -6/Factory | Identified exit to Extension 7991 | -6/Factory | Entered Extension 8015 | -6/Extension | Rescued a captive Derelict 8016 | -6/Extension | Rescued a captive Derelict 8081 | -6/Extension | Core integrity fell below 50% 8117 | -6/Extension | Lost 8 parts (1p3n2u2w) 8134 | -6/Extension | Lost 3 allies 8359 | -6/Extension | Rescued a captive Derelict 8384 | -6/Extension | Extracted ID and sensor layout for unrecognized location from A7's data core 8528 | -6/Extension | Found Powered Armor 8565 | -6/Extension | Build established: Scavenger-Mutant 8726 | -6/Extension | Warlord forces began an assault 8842 | -6/Extension | Spotted B-75 Beast 8851 | -6/Extension | Allies destroyed B-75 Beast 8867 | -6/Extension | Spotted B-75 Beast 8889 | -6/Extension | Allies destroyed B-75 Beast 8950 | -6/Extension | Lost 8 allies 9269 | -6/Extension | Rescued a captive Derelict 9362 | -6/Extension | Disrupted transfer network 9482 | -6/Extension | Discovered exit to Factory (range 11) 9484 | -6/Extension | Discovered new exit (range 7) 9494 | -6/Extension | Entered Cetus 9494 | -6/Cetus | Accompanied by 2 allies 9516 | -6/Cetus | Spotted Cetus Guard 9517 | -6/Cetus | Spotted Cetus Guard 9521 | -6/Cetus | Spotted Cetus Guard 9562 | -6/Cetus | Spotted Cetus Guard 9564 | -6/Cetus | Core integrity fell below 20% 9577 | -6/Cetus | Ran an X-ray algorithm 9582 | -6/Cetus | Discovered new exit (range 15) 9587 | -6/Cetus | Entered Archives 9594 | -6/Archives | Lost 5 parts (1p3n1u) 9607 | -6/Archives | Unable to access archive contents 9612 | -6/Archives | Discovered new exit (range 14) 9617 | -6/Archives | Entered Hub_04(d) 9709 | -6/Hub_04(d) | Discovered exit to Factory (range 15) 9731 | -6/Hub_04(d) | Entered Factory 9731 | -5/Factory | Evolved 2 slots: Utility x2 9732 | -5/Factory | Identified exit to Upper Caves 9733 | -5/Factory | Loaded intel: 4 garrison access locations 9835 | -5/Factory | Entered Upper Caves 9836 | -5/Upper Caves | Build established: Mutant 9836 | -5/Upper Caves | Identified exit to Upper Caves 9946 | -5/Upper Caves | Entered another Upper Caves area 9947 | -5/Upper Caves | Identified exit to Factory 9947 | -5/Upper Caves | Identified exit to Zhirov 10069 | -5/Upper Caves | Entered Zhirov 10069 | -5/Zhirov | Discovered new exit (range 3) 10076 | -5/Zhirov | Met Zhirov 10082 | -5/Zhirov | Learned location of Quarantine (-2) 10082 | -5/Zhirov | Learned location of Testing (-3) 10082 | -5/Zhirov | Learned location of Command (-1) 10085 | -5/Zhirov | Zhirov requested help retrieving the SGEMP Prototype 10090 | -5/Zhirov | Found Alien Artifact 10090 | -5/Zhirov | Identified Integrated Dissipator 10090 | -5/Zhirov | Installed Integrated Dissipator, increased core heat dissipation (+20) 10096 | -5/Zhirov | Found Alien Artifact 10191 | -5/Zhirov | Identified exit to Proximity Caves 10191 | -5/Zhirov | Entered Proximity Caves 10329 | -4/Proximity Caves | Entered Factory 10329 | -4/Factory | Evolved 2 slots: Propulsion x1, Utility x1 10330 | -4/Factory | Identified exit to Armory 10343 | -4/Factory | Lost 4 parts (3n1u) 10380 | -4/Factory | Discovered new exit (range 4) 10382 | -4/Factory | Identified exit to Upper Caves 10451 | -4/Factory | Entered Upper Caves 10452 | -4/Upper Caves | Identified exit to Upper Caves 10494 | -4/Upper Caves | Learned 12 Research zone layouts 10496 | -4/Upper Caves | Learned Armory trap positions 10496 | -4/Upper Caves | Learned Extension emergency access door positions 10609 | -4/Upper Caves | Found Alien Artifact 10609 | -4/Upper Caves | Identified Core Expander 10609 | -4/Upper Caves | Installed Core Expander, added new Propulsion slot 10614 | -4/Upper Caves | Entered another Upper Caves area 10618 | -4/Upper Caves | Discovered new exit (range 8) 10690 | -4/Upper Caves | Encountered a Warlord checkpoint 10955 | -4/Upper Caves | Discovered new exit (range 9) 10958 | -4/Upper Caves | Identified exit to Warlord 10958 | -4/Upper Caves | Entered Warlord 11174 | -4/Warlord | Warlord's base attacked by MAIN.C 11355 | -4/Warlord | Lost 5 allies 11406 | -4/Warlord | Spotted B-86 Titan 11498 | -4/Warlord | Lost 17 allies 11524 | -4/Warlord | Warlord forces counterattacked 11590 | -4/Warlord | Rebuked by Warlord 11608 | -4/Warlord | Lost 11 allies 11635 | -4/Warlord | Build established: Derelict-Sprinter 11815 | -4/Warlord | Spotted B-90 Cyclops 11815 | -4/Warlord | Spotted B-86 Titan 11849 | -4/Warlord | Warlord base infiltrated, sounded retreat 11850 | -4/Warlord | Lost 5 allies 11854 | -4/Warlord | Spotted Striker 11854 | -4/Warlord | Spotted Executioner 11860 | -4/Warlord | Spotted Executioner 11867 | -4/Warlord | Found Prototype Device 11867 | -4/Warlord | Identified Exp. Thermal Shield 11906 | -4/Warlord | Spotted Striker 11906 | -4/Warlord | Spotted Executioner 11946 | -4/Warlord | Lost 11 allies 11968 | -4/Warlord | Spotted Executioner 11998 | -4/Warlord | Spotted Executioner 12074 | -4/Warlord | Lost 7 allies 12074 | -4/Warlord | Spotted Striker 12076 | -4/Warlord | Spotted Executioner 12100 | -4/Warlord | Core integrity fell below 50% 12103 | -4/Warlord | Discovered new exit (range 9) 12107 | -4/Warlord | Identified exit to Proximity Caves 12107 | -4/Warlord | Entered Proximity Caves 12124 | -3/Proximity Caves | Lost 4 parts (2n2u) 12226 | -3/Proximity Caves | Discovered new exit (range 6) 12228 | -3/Proximity Caves | Identified exit to Research 12228 | -3/Proximity Caves | Entered Research 12228 | -3/Research | Evolved 2 slots: Power x1, Utility x1 12229 | -3/Research | Identified exit to Research 12319 | -3/Research | Entered another Research area 12319 | -2/Research | Evolved 2 slots: Propulsion x2 12320 | -2/Research | Identified exit to Quarantine 12375 | -2/Research | Build established: Mutant 12496 | -2/Research | Spotted B-90 Cyclops 12501 | -2/Research | Entered Quarantine 12581 | -2/Quarantine | Spotted Fortress 12603 | -2/Quarantine | Discovered new exit (range 5) 12603 | -2/Quarantine | Discovered new exit (range 6) 12604 | -2/Quarantine | Identified exit to Section 7 12605 | -2/Quarantine | Identified exit to Protoforge 12605 | -2/Quarantine | Entered Protoforge 12606 | -2/Protoforge | Superfortress began startup sequence 12633 | -2/Protoforge | Spotted Hotshot 12644 | -2/Protoforge | Discovered new exit (range 12) 12644 | -2/Protoforge | Spotted Hotshot 12644 | -2/Protoforge | Spotted Hotshot 12644 | -2/Protoforge | Spotted Hotshot 12644 | -2/Protoforge | Spotted Hotshot 12644 | -2/Protoforge | Spotted Hotshot 12648 | -2/Protoforge | Identified exit to Access 12649 | -2/Protoforge | Core integrity fell below 50% 12649 | -2/Protoforge | Entered Access 12649 | -1/Access | Evolved 2 slots: Propulsion x1, Utility x1 12685 | -1/Access | Lost 6 parts (1p4n1u) 12994 | -1/Access | Core integrity fell below 50% 13039 | -1/Access | Lost 7 parts (1p4n2u) 13046 | -1/Access | Build established: Hacker-Mutant 13068 | -1/Access | Core integrity fell below 20% 13197 | -1/Access | Spotted B-99 Colossus 13200 | -1/Access | Destroyed by P-80 Master with Gamma Rifle Last Messages --------------- Slug penetrates Wall. System corrupted: Matter fused (-9). Penetrated by Slug. >> DECODED: Patrol location. Triggered Gamma Bomb Trap. A bubble of electromagnetic force engulfs the area. Door malfunctions. Slug penetrates Wall. U-05 Engineer lays Concrete. Acquired Prototype Energy Cannon. Identified Proton Burst Cannon. Faulty integration damages Field Propulsion Array (-24). Dropped Faulty Proton Burst Cannon. >> DECODED: Patrol location. Critical hit (Burn: +37). Field Propulsion Array destroyed. >> DECODED: Patrol location. System corrupted: Matter fused (-7). Map ----- +----------------------------------------------------+ | ?????????????????????????????????????????????????? | | ?????????????????????????????????????????????????? | | ?????????????????????????????????????????????????? | | ?????????????????????????????????????????????????? | | ?????????????????????????????????????????????????? | | ?????????????????????????????????????????????????? | | ?????????????????????????????????????????????????? | | ?????????????????????????????????????????????????? | | ?????????????????????????????????????????????????? | | ?????????????????????????????????????????????????? | | ?????????????????????????????????????????????????? | | ?????????????????????????????????????????????????? | | ?????????????????????????????????????????????????? | | ?????????????????????????????????????????????????? | | ?????????????????????????????????????????????????? | | ?????????????????????????????????????????????????? | | ?????????????????????????????????????????????????? | | ?????????? ????????????????#????????????????????? | | ?????????# ?????????????? #????????????????????? | | ?????????# ????????????? #????????????????????? | | ?????????# ????????????? #????????????????????? | | ?????????# ???????????? #????????????????????? | | ??????????? ??????????? #????????????????????? | | ????????????# ???????####A#####????????????????? | | ????????????# ??????# k #????????????????? | | ????????????# ####### @ #????????????????? | | ????????????+ #????????????????? | | ????????????# #????????????????? | | ????????????# +????????????????? | | ????????????# #????????????????? | | ????????????# ####### #????????????????? | | ????????????# ????????# #????????????????? | | ????????????#??????????## k##????????????????? | | ????????????????????????# #?????????????????? | | ????????????????????????# ##########????????? | | ????????????????????????# p #????????? | | ???????????????????????## pp #????????? | | ???????????????????????+ #????????? | | ???????????????????????## #????????? | | ????????????????????????# #????????? | | ????????????????????????# #????????? | | ????????????????????????########## #????????? | | ????????????????????????########## #????????? | | ????????????????????????# # ###++##### | | ????????????????????????# # # | | ????????????????????????# # # | | ????????????????????????# # # | | ??????? ??????????????# # # | | ?????# ??????????????# # # | | ?????# ??????????????# # # | +----------------------------------------------------+ Best States ------------- Heat Dissipation 153 Energy Generation 25 Energy Capacity 650 Matter Stores 300 Matter Capacity 300 Sight Range 16 Robot Scan Range 16 Terrain Scan Density 10 Additional Mass Support 16 Corruption Block 11 Armor Coverage 2000 Resistance: TH 30 Core Shielding 40 Propulsion Shielding 66 Evasion (%) 64 Armor Integrity Analysis 30 Recoil Reduction 5 Offensive Hacking 10 Defensive Hacking 14 Item Schematics ----------------- Assault Drone Bay | -5/Zhirov | Free Exp. Heat Sink | -5/Zhirov | Free Exp. Optical Array | -5/Zhirov | Free Imp. Arc Thrower | -5/Zhirov | Free Robot Schematics ------------------ None Fabricated ------------ Nothing Repaired ---------- Nothing Alien Tech Used ----------------- Integrated Dissipator Core Expander Achievements -------------- None Challenges ------------ None Game ------ Seed ChargeTerrainShield Manual? 0 Play Time 01:42:38 Cumulative 203.0 hours Start 2025.09.12 @ 19:56:19 End 2025.09.12 @ 22:06:36 Sessions 3 Manual Loads 0 Difficulty Rogue Special Mode None Game No. 176 Rogue 176 Adventurer 0 Explorer 0 Win Type - Total 10 Types 4/0/2/2/1/0/0/0/0/1 Lore% 90 Gallery% 84 Achievement% 67 Wizard Run 0 Options --------- Layout 1 ASCII 0 Keyboard 0 Movement Numpad Keybinds 0 Fullscreen 1 Font 24/Proggy Map View 50x35 Zoom Use 0% Tactical HUD 0 Map Filters NONE Filters NONE Steam 1 RUN: b4364051-7f83-4ba0-be84-cd25915292ef